[Event "CZE-ch Youth B14 2022"]
[Site "Luhacovice"]
[Date "2022.03.14"]
[Round "4.9"]
[White "Davidek, Zdenek"]
[Black "Juracak, David"]
[Result "1/2-1/2"]
[ECO "C42"]
[WhiteElo "1570"]
[BlackElo "1717"]
[Annotator "NA"]
[PlyCount "82"]
[EventDate "2022.03.12"]
[EventType "swiss"]
[EventCountry "CZE"]
[SourceTitle "playchess.com"]
[Source "ChessBase"]
[SourceQuality "1"]
[TimeControl "40/5400+30:1800+30"]

1. e4 {[%emt 0:00:25]} e5 {[%emt 0:00:05]} 2. Nf3 {[%emt 0:00:06]} Nf6 {[%emt 0:00:03]} 3. Nxe5 {[%emt 0:00:06]} d6 {[%emt 0:00:03]} 4. Nf3 {[%emt 0:00:06]} Nxe4 {[%emt 0:00:05]} 5. Nc3 {[%emt 0:00:08]} Nxc3 {[%emt 0:00:09]} 6. dxc3 {[%emt 0:00:05]} Be7 {[%emt 0:00:18]} 7. Be3 {[%emt 0:01:46]} a6 {[%emt 0:01:40]} 8. Qd2 {[%emt 0:00:49]} Nc6 {[%emt 0:00:09]} 9. O-O-O {[%emt 0:01:04]} Be6 {[%emt 0:00:07]} 10. Kb1 {[%emt 0:00:05]} Qd7 {[%emt 0:00:36]} 11. h3 {[%emt 0:03:40]} O-O-O {[%emt 0:00:55]} 12. Ng5 {[%emt 0:01:24]} Bxg5 {[%emt 0:00:10]} 13. Bxg5 {[%emt 0:00:07]} f6 {[%emt 0:00:03]} 14. Be3 {[%emt 0:00:20]} Rhe8 {[%emt 0:14:12]} 15. b3 {[%emt 0:03:06]} Re7 {[%emt 0:03:30]} 16. g4 {[%emt 0:03:13]} Rde8 {[%emt 0:04:03]} 17. Bg2 {[%emt 0:06:35]} Bf7 {[%emt 0:04:20]} 18. Rhe1 {[%emt 0:03:25]} Bg6 {[%emt 0:01:13]} 19. Bf4 {[%emt 0:08:36]} Be4 {[%emt 0:20:53]} 20. f3 {[%emt 0:01:26]} Bg6 {[%emt 0:00:06]} 21. Bg3 {[%emt 0:00:29]} h5 {[%emt 0:02:01]} 22. Rxe7 {[%emt 0:04:10]} Rxe7 {[%emt 0:00:11]} 23. Re1 {[%emt 0:01:16]} Rxe1+ {[%emt 0:01:33]} 24. Qxe1 {[%emt 0:00:08]} hxg4 {[%emt 0:00:37]} 25. fxg4 {[%emt 0:16:46]} f5 {[%emt 0:07:46]} 26. Qf1 {[%emt 0:28:08]} fxg4 {[%emt 0:05:07]} 27. hxg4 {[%emt 0:00:17]} Qf7 {[%emt 0:13:39]} 28. Qh1 {[%emt 0:03:39]} Qe8 {[%emt 0:00:43]} 29. Qf1 {[%emt 0:01:46]} Qf7 {[%emt 0:00:31]} 30. Qxf7 {[%emt 0:02:01]} Bxf7 {[%emt 0:00:05]} 31. Be4 {[%emt 0:00:04]} Kd7 {[%emt 0:01:14]} 32. Kc1 {[%emt 0:02:00]} g5 {[%emt 0:01:20]} 33. Kd2 {[%emt 0:00:35]} Be6 {[%emt 0:00:18]} 34. Bf2 {[%emt 0:01:12]} b6 {[%emt 0:03:30]} 35. Be3 {[%emt 0:01:49]} Bxg4 {[%emt 0:00:42]} 36. Bxg5 {[%emt 0:00:06]} Ne5 {[%emt 0:00:48]} 37. Ke3 {[%emt 0:02:44]} Be6 {[%emt 0:01:57]} 38. c4 {[%emt 0:01:30]} Ng4+ {[%emt 0:02:32]} 39. Ke2 {[%emt 0:01:24]} Ne5 {[%emt 0:00:34]} 40. c3 {[%emt 0:01:56]} Nf7 {[%emt 0:03:00]} 41. Be3 {[%emt 0:30:36]} Ne5 {[%emt 0:30:13]} 1/2-1/2

[Event "CZE-ch Youth B14 2022"]
[Site "Luhacovice"]
[Date "2022.03.14"]
[Round "4.10"]
[White "Vysinsky, Otakar"]
[Black "Tesar, Jakub"]
[Result "1-0"]
[ECO "B25"]
[WhiteElo "1534"]
[BlackElo "1660"]
[Annotator "NA"]
[PlyCount "85"]
[EventDate "2022.03.12"]
[EventType "swiss"]
[EventCountry "CZE"]
[SourceTitle "playchess.com"]
[Source "ChessBase"]
[SourceQuality "1"]
[TimeControl "40/5400+30:1800+30"]

1. e4 {[%emt 0:00:05]} c5 {[%emt 0:00:11]} 2. Nc3 {[%emt 0:00:07]} d6 {[%emt 0:00:11]} 3. g3 {[%emt 0:00:04]} g6 {[%emt 0:00:19]} 4. Bg2 {[%emt 0:00:07]} Bg7 {[%emt 0:00:08]} 5. d3 {[%emt 0:00:09]} Nc6 {[%emt 0:00:16]} 6. f4 {[%emt 0:00:33]} e6 {[%emt 0:00:12]} 7. Nf3 {[%emt 0:00:39]} Nge7 {[%emt 0:00:20]} 8. O-O {[%emt 0:00:45]} O-O {[%emt 0:00:14]} 9. Be3 {[%emt 0:01:46]} Rb8 {[%emt 0:03:47]} 10. Rb1 {[%emt 0:05:07]} b6 {[%emt 0:11:20]} 11. d4 cxd4 {[%emt 0:11:22]} 12. Nxd4 {[%emt 0:02:15]} Bb7 {[%emt 0:02:14]} 13. Nxc6 {[%emt 0:08:15]} Bxc6 {[%emt 0:01:23]} 14. Ne2 {[%emt 0:05:30]} d5 {[%emt 0:13:45]} 15. e5 {[%emt 0:04:14]} Bb5 {[%emt 0:08:56]} 16. Re1 {[%emt 0:04:02]} Qc7 {[%emt 0:04:59]} 17. Nd4 {[%emt 0:03:35]} Ba6 {[%emt 0:00:22]} 18. a4 {[%emt 0:09:31]} Rfc8 {[%emt 0:08:15]} 19. c3 {[%emt 0:05:12]} Bf8 {[%emt 0:05:01]} 20. Nb5 {[%emt 0:06:01]} Bxb5 {[%emt 0:01:21]} 21. axb5 {[%emt 0:00:01]} Nf5 {[%emt 0:00:40]} 22. Bf2 {[%emt 0:02:49]} Bc5 {[%emt 0:00:34]} 23. Qd2 {[%emt 0:02:58]} Bxf2+ {[%emt 0:03:15]} 24. Qxf2 {[%emt 0:00:10]} Qc5 {[%emt 0:04:12]} 25. Ra1 {[%emt 0:08:31]} Rb7 {[%emt 0:04:03]} 26. Bf1 {[%emt 0:05:26]} Rbc7 {[%emt 0:10:59]} 27. Ra4 {[%emt 0:05:47]} Rd8 {[%emt 0:02:29]} 28. g4 {[%emt 0:05:15]} Ne7 {[%emt 0:01:01]} 29. Rea1 {[%emt 0:02:35]} Nc8 {[%emt 0:00:33]} 30. Bd3 {[%emt 0:01:13]} Qxf2+ {[%emt 0:00:55]} 31. Kxf2 {[%emt 0:00:02]} Kg7 {[%emt 0:02:00]} 32. Ke3 {[%emt 0:01:16]} Rh8 33. f5 {[%emt 0:03:10]} Re8 {[%emt 0:00:49]} 34. f6+ {[%emt 0:01:15]} Kg8 {[%emt 0:00:16]} 35. h4 {[%emt 0:02:25]} h5 {[%emt 0:01:02]} 36. gxh5 {[%emt 0:01:30]} Kh8 {[%emt 0:00:31]} 37. hxg6 {[%emt 0:00:51]} fxg6 {[%emt 0:00:17]} 38. Bxg6 {[%emt 0:00:44]} Rg8 {[%emt 0:00:16]} 39. h5 {[%emt 0:02:46]} Rc5 {[%emt 0:00:21]} 40. Rb4 {[%emt 0:00:00]} Rc7 {[%emt 0:00:00]} 41. Kf4 {[%emt 0:02:22]} Rd7 {[%emt 0:01:16]} 42. Kg5 {[%emt 0:01:18]} Rf7 {[%emt 0:01:32]} 43. h6 {[%emt 0:01:02]} 1-0

[Event "CZE-ch Youth B14 2022"]
[Site "Luhacovice"]
[Date "2022.03.14"]
[Round "4.11"]
[White "Juhanak, Daniel"]
[Black "Mrazek, Adam"]
[Result "1-0"]
[ECO "B38"]
[WhiteElo "1688"]
[BlackElo "1582"]
[Annotator "NA"]
[PlyCount "59"]
[EventDate "2022.03.12"]
[EventType "swiss"]
[EventCountry "CZE"]
[SourceTitle "playchess.com"]
[Source "ChessBase"]
[SourceQuality "1"]
[TimeControl "40/5400+30:1800+30"]

1. e4 {[%emt 0:00:05]} c5 {[%emt 0:00:20]} 2. Nf3 {[%emt 0:00:30]} Nc6 {[%emt 0:00:30]} 3. d4 {[%emt 0:00:30]} cxd4 {[%emt 0:00:30]} 4. Nxd4 {[%emt 0:00:00]} g6 {[%emt 0:00:00]} 5. c4 {[%emt 0:00:16]} Bg7 {[%emt 0:00:37]} 6. Be3 {[%emt 0:00:16]} Nf6 {[%emt 0:01:28]} 7. Nc3 {[%emt 0:00:30]} O-O {[%emt 0:01:09]} 8. Be2 {[%emt 0:00:48]} d6 {[%emt 0:00:56]} 9. O-O {[%emt 0:00:25]} Bd7 {[%emt 0:01:08]} 10. Nc2 {[%emt 0:00:26]} Rc8 {[%emt 0:04:44]} 11. Rc1 {[%emt 0:00:59]} Ne5 {[%emt 0:04:58]} 12. Na3 {[%emt 0:07:10]} b6 {[%emt 0:11:47]} 13. f3 {[%emt 0:01:20]} Bc6 {[%emt 0:01:04]} 14. Qd2 {[%emt 0:01:17]} Ned7 {[%emt 0:02:48]} 15. Rfd1 {[%emt 0:02:09]} a5 {[%emt 0:14:56]} 16. b3 {[%emt 0:04:33]} Nc5 {[%emt 0:01:37]} 17. Bf1 {[%emt 0:01:19]} Nfd7 {[%emt 0:01:26]} 18. Nc2 {[%emt 0:07:52]} Qc7 {[%emt 0:08:28]} 19. Kh1 {[%emt 0:04:20]} Rfd8 {[%emt 0:11:04]} 20. Nd4 {[%emt 0:04:45]} Ne5 {[%emt 0:04:50]} 21. Qf2 {[%emt 0:01:16]} Ra8 {[%emt 0:04:29]} 22. Rc2 {[%emt 0:07:48]} Be8 {[%emt 0:07:16]} 23. Nd5 {[%emt 0:01:22]} Qb7 {[%emt 0:01:07]} 24. Qh4 {[%emt 0:06:16]} Ra7 {[%emt 0:02:39]} 25. Bg5 {[%emt 0:05:44]} Bf8 {[%emt 0:02:28]} 26. f4 {[%emt 0:16:45]} Nc6 {[%emt 0:00:33]} 27. Nb5 {[%emt 0:01:20]} Raa8 {[%emt 0:04:51]} 28. f5 {[%emt 0:04:05]} Nb4 {[%emt 0:05:56]} 29. Rc3 {[%emt 0:08:45]} f6 {[%emt 0:00:48]} 30. Rh3 {[%emt 0:01:49]} 1-0

[Event "CZE-ch Youth B14 2022"]
[Site "Luhacovice"]
[Date "2022.03.14"]
[Round "4.12"]
[White "Veverka, Vladimir"]
[Black "Hozda, Max"]
[Result "0-1"]
[ECO "D31"]
[WhiteElo "1723"]
[BlackElo "1901"]
[Annotator "ChessBase"]
[PlyCount "72"]
[EventDate "2022.03.12"]
[EventType "swiss"]
[EventCountry "CZE"]
[SourceTitle "playchess.com"]
[Source "ChessBase"]
[SourceQuality "1"]
[TimeControl "40/5400+30:1800+30"]

1. d4 d5 2. c4 e6 3. Nc3 c6 4. cxd5 exd5 5. Nf3 Bf5 6. Bf4 Nf6 7. e3 Nbd7 8. Bd3 Bg4 9. h3 Bh5 10. O-O Be7 11. Rb1 a5 12. a3 O-O 13. Be2 Re8 14. b4 axb4 15. axb4 Ne4 16. Nxe4 dxe4 17. Nd2 Bxe2 18. Qxe2 f5 19. Nc4 Nf6 20. Rfc1 Nd5 21. Ne5 Bxb4 22. Qc4 Qe7 23. Rb3 Rec8 24. Rcb1 Ra4 25. Bg3 Kf8 26. Rc1 Qe6 27. Rcb1 b5 28. Qc2 Bd6 29. Rc1 Bxe5 30. Bxe5 Rc4 31. Qb2 Nb6 32. Bg3 Kg8 33. Rxc4 Nxc4 34. Qc2 Ra8 35. Qd1 Qd5 36. Qc2 Nd2 0-1

[Event "CZE-ch Youth B14 2022"]
[Site "Luhacovice"]
[Date "2022.03.15"]
[Round "5.1"]
[White "Brozka, Karel"]
[Black "Hladky, Tadeas"]
[Result "1/2-1/2"]
[ECO "D15"]
[WhiteElo "2125"]
[BlackElo "2029"]
[Annotator "ChessBase"]
[PlyCount "111"]
[EventDate "2022.03.12"]
[EventType "swiss"]
[EventCountry "CZE"]
[SourceTitle "playchess.com"]
[Source "ChessBase"]
[SourceQuality "1"]
[TimeControl "40/5400+30:1800+30"]

1. d4 {[%emt 0:00:05]} d5 {[%emt 0:00:06]} 2. c4 {[%emt 0:00:06]} c6 {[%emt 0:00:02]} 3. Nc3 {[%emt 0:00:21]} Nf6 {[%emt 0:00:05]} 4. Nf3 {[%emt 0:00:11]} a6 {[%emt 0:00:11]} 5. e3 {[%emt 0:00:13]} Bf5 {[%emt 0:00:06]} 6. b3 {[%emt 0:05:36]} e6 {[%emt 0:00:24]} 7. Bb2 {[%emt 0:06:36]} Ne4 {[%emt 0:08:47]} 8. Nxe4 {[%emt 0:04:47]} Bxe4 {[%emt 0:01:57]} 9. Nd2 {[%emt 0:01:04]} Bg6 {[%emt 0:01:01]} 10. Be2 {[%emt 0:01:18]} Bd6 {[%emt 0:01:06]} 11. O-O {[%emt 0:03:36]} O-O {[%emt 0:01:12]} 12. Nf3 {[%emt 0:15:34]} Nd7 {[%emt 0:01:15]} 13. Rc1 {[%emt 0:01:20]} h6 {[%emt 0:01:08]} 14. Ne5 {[%emt 0:02:11]} Nxe5 {[%emt 0:04:09]} 15. dxe5 {[%emt 0:00:08]} Be7 {[%emt 0:01:30]} 16. cxd5 {[%emt 0:04:26]} cxd5 {[%emt 0:03:44]} 17. Qd4 {[%emt 0:06:58]} Qd7 {[%emt 0:03:56]} 18. Rfd1 {[%emt 0:08:47]} Rac8 {[%emt 0:04:21]} 19. e4 {[%emt 0:04:22]} Rxc1 {[%emt 0:03:17]} 20. Bxc1 {[%emt 0:00:12]} Rc8 {[%emt 0:00:17]} 21. exd5 {[%emt 0:05:49]} Qxd5 {[%emt 0:02:33]} 22. Qxd5 {[%emt 0:00:44]} exd5 {[%emt 0:00:07]} 23. Be3 {[%emt 0:00:23]} Rc2 {[%emt 0:01:18]} 24. Bf3 {[%emt 0:05:03]} Be4 {[%emt 0:03:43]} 25. Bxe4 {[%emt 0:00:15]} dxe4 {[%emt 0:00:05]} 26. Rd7 {[%emt 0:01:02]} Bg5 {[%emt 0:04:20]} 27. Bxg5 {[%emt 0:02:38]} hxg5 {[%emt 0:00:12]} 28. g4 {[%emt 0:04:33]} Rxa2 {[%emt 0:04:05]} 29. Rxb7 {[%emt 0:00:18]} Ra5 {[%emt 0:00:44]} 30. Rb8+ {[%emt 0:01:03]} Kh7 {[%emt 0:00:06]} 31. Rb7 {[%emt 0:00:22]} Kg8 {[%emt 0:00:06]} 32. Rb8+ {[%emt 0:03:30]} Kh7 {[%emt 0:00:05]} 33. Rb6 {[%emt 0:00:44]} Rxe5 {[%emt 0:03:44]} 34. Rxa6 {[%emt 0:00:46]} e3 {[%emt 0:01:49]} 35. fxe3 {[%emt 0:00:25]} Rxe3 {[%emt 0:00:05]} 36. Rb6 {[%emt 0:00:24]} Re2 {[%emt 0:00:05]} 37. h3 {[%emt 0:01:08]} Rb2 {[%emt 0:00:08]} 38. b4 {[%emt 0:06:14]} f6 {[%emt 0:00:15]} 39. Rb8 {[%emt 0:01:02]} Kg6 {[%emt 0:05:08]} 40. b5 {[%emt 0:00:24]} Kh7 {[%emt 0:00:06]} 41. Rb6 {[%emt 0:33:12]} Kg6 {[%emt 0:30:40]} 42. Rb7 {[%emt 0:00:15]} Kh7 {[%emt 0:00:25]} 43. b6 {[%emt 0:02:11]} Kg6 {[%emt 0:00:06]} 44. Rb8 {[%emt 0:00:09]} Kf7 {[%emt 0:01:15]} 45. Kf1 {[%emt 0:00:00]} Ke7 {[%emt 0:00:00]} 46. b7 {[%emt 0:00:00]} Kd7 {[%emt 0:00:00]} 47. Rg8 {[%emt 0:00:00]} Rxb7 {[%emt 0:00:00]} 48. Rxg7+ {[%emt 0:00:00]} Kc6 {[%emt 0:00:00]} 49. Rxb7 {[%emt 0:00:00]} Kxb7 {[%emt 0:00:00]} 50. Kf2 {[%emt 0:00:00]} Kc6 {[%emt 0:00:00]} 51. Kg3 {[%emt 0:00:00]} Kd5 {[%emt 0:00:00]} 52. h4 {[%emt 0:00:00]} gxh4+ {[%emt 0:00:00]} 53. Kxh4 {[%emt 0:00:00]} Ke5 {[%emt 0:00:00]} 54. Kh5 {[%emt 0:00:00]} Kf4 {[%emt 0:00:00]} 55. Kg6 {[%emt 0:00:00]} Kxg4 {[%emt 0:00:00]} 56. Kxf6 1/2-1/2

[Event "CZE-ch Youth B14 2022"]
[Site "Luhacovice"]
[Date "2022.03.15"]
[Round "5.2"]
[White "Prazak, Daniel"]
[Black "Fizer, Marek"]
[Result "1-0"]
[ECO "B40"]
[WhiteElo "2016"]
[BlackElo "1876"]
[Annotator "ChessBase"]
[PlyCount "59"]
[EventDate "2022.03.12"]
[EventType "swiss"]
[EventCountry "CZE"]
[SourceTitle "playchess.com"]
[Source "ChessBase"]
[SourceQuality "1"]
[TimeControl "40/5400+30:1800+30"]

1. e4 {[%emt 0:00:03]} c5 {[%emt 0:00:06]} 2. Nf3 {[%emt 0:00:08]} e6 {[%emt 0:00:09]} 3. g3 {[%emt 0:01:20]} Nc6 {[%emt 0:00:18]} 4. Bg2 {[%emt 0:00:07]} Qc7 {[%emt 0:00:59]} 5. O-O {[%emt 0:01:07]} Nf6 {[%emt 0:00:44]} 6. Re1 {[%emt 0:00:23]} d6 {[%emt 0:00:47]} 7. c3 {[%emt 0:02:01]} Be7 {[%emt 0:03:14]} 8. d4 {[%emt 0:06:02]} cxd4 {[%emt 0:00:27]} 9. cxd4 {[%emt 0:00:10]} O-O {[%emt 0:05:49]} 10. Nc3 {[%emt 0:02:50]} Rd8 {[%emt 0:07:40]} 11. Bf4 {[%emt 0:13:12]} Qb6 {[%emt 0:18:33]} 12. Qd2 {[%emt 0:05:33]} d5 {[%emt 0:07:47]} 13. e5 {[%emt 0:23:02]} Ne8 {[%emt 0:03:09]} 14. Rab1 {[%emt 0:04:52]} Bd7 {[%emt 0:03:18]} 15. h4 {[%emt 0:02:20]} Na5 {[%emt 0:01:12]} 16. Bg5 {[%emt 0:01:37]} f6 {[%emt 0:05:48]} 17. exf6 {[%emt 0:00:19]} Bxf6 {[%emt 0:05:08]} 18. Ne5 {[%emt 0:06:21]} Nc4 {[%emt 0:03:28]} 19. Nxc4 {[%emt 0:05:32]} dxc4 {[%emt 0:00:14]} 20. d5 {[%emt 0:01:05]} h6 {[%emt 0:06:35]} 21. Bf4 {[%emt 0:03:28]} exd5 {[%emt 0:01:41]} 22. Nxd5 {[%emt 0:00:42]} Qd4 {[%emt 0:00:55]} 23. Qxd4 {[%emt 0:00:26]} Bxd4 {[%emt 0:00:02]} 24. Ne7+ {[%emt 0:00:13]} Kh8 {[%emt 0:01:25]} 25. Bxb7 {[%emt 0:00:49]} Rab8 {[%emt 0:01:03]} 26. Bxb8 {[%emt 0:00:11]} Rxb8 {[%emt 0:00:08]} 27. Bd5 {[%emt 0:00:07]} Nf6 {[%emt 0:01:12]} 28. Bxc4 {[%emt 0:01:18]} Ng4 {[%emt 0:00:12]} 29. Re2 {[%emt 0:00:18]} Ne5 {[%emt 0:02:20]} 30. Rxe5 {[%emt 0:00:03]} 1-0

[Event "CZE-ch Youth B14 2022"]
[Site "Luhacovice"]
[Date "2022.03.15"]
[Round "5.3"]
[White "Zelba, Lukas"]
[Black "Setina, Vaclav"]
[Result "1-0"]
[ECO "D43"]
[WhiteElo "1945"]
[BlackElo "1881"]
[Annotator "ChessBase"]
[PlyCount "81"]
[EventDate "2022.03.12"]
[EventType "swiss"]
[EventCountry "CZE"]
[SourceTitle "playchess.com"]
[Source "ChessBase"]
[SourceQuality "1"]
[TimeControl "40/5400+30:1800+30"]

1. d4 {[%emt 0:00:11]} d5 {[%emt 0:00:03]} 2. Nf3 {[%emt 0:00:07]} Nf6 {[%emt 0:00:11]} 3. c4 {[%emt 0:00:05]} c6 {[%emt 0:00:11]} 4. Nc3 {[%emt 0:00:33]} e6 {[%emt 0:00:47]} 5. g3 {[%emt 0:00:09]} Nbd7 {[%emt 0:00:24]} 6. Bg2 {[%emt 0:00:11]} dxc4 {[%emt 0:01:52]} 7. e4 {[%emt 0:01:35]} Bb4 {[%emt 0:04:38]} 8. Bg5 {[%emt 0:15:16]} h6 {[%emt 0:03:44]} 9. Bxf6 {[%emt 0:00:25]} Nxf6 {[%emt 0:00:31]} 10. Ne5 {[%emt 0:01:14]} O-O {[%emt 0:03:32]} 11. Nxc4 {[%emt 0:02:09]} b6 {[%emt 0:02:56]} 12. a3 {[%emt 0:04:23]} Be7 {[%emt 0:06:42]} 13. Ne5 {[%emt 0:05:36]} Qc7 {[%emt 0:06:25]} 14. Rc1 {[%emt 0:07:28]} a6 {[%emt 0:10:27]} 15. O-O {[%emt 0:03:55]} Rd8 {[%emt 0:02:21]} 16. Nxc6 {[%emt 0:10:56]} Re8 {[%emt 0:09:12]} 17. e5 {[%emt 0:14:00]} Nd5 {[%emt 0:02:53]} 18. Nxd5 {[%emt 0:01:35]} exd5 {[%emt 0:00:16]} 19. Nb4 {[%emt 0:00:07]} Qd8 {[%emt 0:04:49]} 20. Nxd5 {[%emt 0:03:01]} Ra7 {[%emt 0:03:41]} 21. f4 {[%emt 0:03:57]} Bf8 {[%emt 0:02:24]} 22. Nb4 {[%emt 0:04:41]} Bxb4 {[%emt 0:04:17]} 23. axb4 {[%emt 0:00:08]} Rd7 24. d5 {[%emt 0:01:33]} Bb7 {[%emt 0:03:03]} 25. d6 {[%emt 0:00:35]} Bxg2 {[%emt 0:00:18]} 26. Kxg2 {[%emt 0:00:07]} g6 {[%emt 0:11:32]} 27. Qd5 {[%emt 0:01:51]} Kf8 {[%emt 0:05:08]} 28. Rfd1 {[%emt 0:01:02]} b5 {[%emt 0:08:32]} 29. Rc5 {[%emt 0:03:26]} Qb6 {[%emt 0:01:49]} 30. Qc6 {[%emt 0:02:54]} Qa7 {[%emt 0:00:46]} 31. Ra1 {[%emt 0:00:59]} Ra8 {[%emt 0:01:32]} 32. g4 {[%emt 0:01:39]} Kg8 {[%emt 0:00:43]} 33. Ra3 {[%emt 0:00:48]} Kh8 {[%emt 0:00:17]} 34. Kf1 {[%emt 0:02:49]} h5 35. gxh5 {[%emt 0:00:25]} gxh5 {[%emt 0:01:04]} 36. Rh3 {[%emt 0:02:01]} Kg7 {[%emt 0:00:56]} 37. Qg2+ {[%emt 0:00:54]} Kf8 {[%emt 0:00:21]} 38. Rxh5 {[%emt 0:00:13]} f5 {[%emt 0:00:39]} 39. Rh8+ {[%emt 0:01:01]} Kf7 {[%emt 0:00:11]} 40. e6+ {[%emt 0:00:33]} Kxe6 {[%emt 0:00:26]} 41. Qg6# 1-0

[Event "CZE-ch Youth B14 2022"]
[Site "Luhacovice"]
[Date "2022.03.15"]
[Round "5.4"]
[White "Buchta, Bartolomej"]
[Black "Zrubek, Dan"]
[Result "1/2-1/2"]
[ECO "B76"]
[WhiteElo "1901"]
[BlackElo "1478"]
[Annotator "ChessBase"]
[PlyCount "67"]
[EventDate "2022.03.12"]
[EventType "swiss"]
[EventCountry "CZE"]
[SourceTitle "playchess.com"]
[Source "ChessBase"]
[SourceQuality "1"]
[TimeControl "40/5400+30:1800+30"]

1. e4 {[%emt 0:00:02]} c5 {[%emt 0:00:11]} 2. Nf3 {[%emt 0:00:07]} d6 {[%emt 0:00:10]} 3. d4 {[%emt 0:00:04]} cxd4 {[%emt 0:00:17]} 4. Nxd4 {[%emt 0:00:05]} Nf6 {[%emt 0:00:30]} 5. Nc3 {[%emt 0:00:08]} g6 {[%emt 0:00:25]} 6. f3 {[%emt 0:00:26]} Bg7 {[%emt 0:00:46]} 7. Be3 {[%emt 0:00:06]} O-O {[%emt 0:00:14]} 8. Bc4 {[%emt 0:00:18]} Nc6 {[%emt 0:00:21]} 9. Bb3 {[%emt 0:00:50]} Nxd4 {[%emt 0:04:39]} 10. Bxd4 {[%emt 0:00:18]} Be6 {[%emt 0:01:39]} 11. Nd5 {[%emt 0:09:50]} Bxd5 {[%emt 0:04:29]} 12. exd5 {[%emt 0:04:04]} b5 {[%emt 0:02:21]} 13. O-O {[%emt 0:02:58]} Qc7 {[%emt 0:07:18]} 14. Re1 {[%emt 0:02:55]} Rfe8 {[%emt 0:02:08]} 15. a4 {[%emt 0:09:27]} a6 {[%emt 0:09:41]} 16. axb5 {[%emt 0:15:31]} axb5 {[%emt 0:00:13]} 17. Rxa8 {[%emt 0:00:19]} Rxa8 {[%emt 0:00:07]} 18. Qe2 {[%emt 0:00:03]} Qb7 {[%emt 0:00:15]} 19. Qxe7 {[%emt 0:03:51]} Qxe7 {[%emt 0:00:10]} 20. Rxe7 {[%emt 0:00:03]} Ra1+ {[%emt 0:00:11]} 21. Kf2 {[%emt 0:00:07]} Ng4+ {[%emt 0:00:14]} 22. Kg3 {[%emt 0:07:19]} Bxd4 {[%emt 0:00:21]} 23. Kxg4 {[%emt 0:00:22]} Bxb2 {[%emt 0:04:01]} 24. Rb7 {[%emt 0:04:42]} Ra5 {[%emt 0:07:53]} 25. f4 {[%emt 0:01:21]} Bd4 {[%emt 0:04:13]} 26. h4 {[%emt 0:04:55]} h5+ {[%emt 0:04:50]} 27. Kf3 {[%emt 0:01:21]} Kg7 {[%emt 0:04:49]} 28. g4 {[%emt 0:01:14]} hxg4+ {[%emt 0:02:13]} 29. Kxg4 {[%emt 0:01:49]} Kf6 {[%emt 0:01:01]} 30. c4 {[%emt 0:07:13]} bxc4 {[%emt 0:01:15]} 31. Bxc4 {[%emt 0:01:33]} Ra7 {[%emt 0:00:33]} 32. Rb1 {[%emt 0:01:43]} Kg7 {[%emt 0:07:04]} 33. f5 {[%emt 0:03:30]} Bf6 {[%emt 0:03:40]} 34. fxg6 {[%emt 0:00:30]} 1/2-1/2

[Event "CZE-ch Youth B14 2022"]
[Site "Luhacovice"]
[Date "2022.03.15"]
[Round "5.5"]
[White "Babula, Matej"]
[Black "Soucek, Jan"]
[Result "0-1"]
[ECO "C06"]
[WhiteElo "1753"]
[BlackElo "1849"]
[Annotator "NA"]
[PlyCount "80"]
[EventDate "2022.03.12"]
[EventType "swiss"]
[EventCountry "CZE"]
[SourceTitle "playchess.com"]
[Source "ChessBase"]
[SourceQuality "1"]
[TimeControl "40/5400+30:1800+30"]

1. e4 {[%emt 0:00:01]} e6 {[%emt 0:01:09]} 2. d4 {[%emt 0:00:06]} d5 {[%emt 0:00:08]} 3. Nd2 {[%emt 0:00:14]} Nf6 {[%emt 0:02:01]} 4. e5 {[%emt 0:00:04]} Nfd7 {[%emt 0:00:04]} 5. Bd3 {[%emt 0:00:15]} c5 {[%emt 0:00:14]} 6. c3 {[%emt 0:00:11]} Nc6 {[%emt 0:00:05]} 7. Ne2 {[%emt 0:02:54]} cxd4 {[%emt 0:00:57]} 8. cxd4 {[%emt 0:00:09]} f6 {[%emt 0:00:07]} 9. exf6 {[%emt 0:00:50]} Qxf6 {[%emt 0:01:08]} 10. Nf3 {[%emt 0:01:23]} Bd6 {[%emt 0:02:53]} 11. O-O {[%emt 0:05:27]} e5 $2 {[%emt 0:14:57] [#]} (11... h6 $14) 12. dxe5 $2 {[%emt 0:00:27]} ({Weaker is} 12. Bg5 Qf7 $11) (12. Nc3 $1 $18 {[%cal Rc3d5]}) 12... Ndxe5 {[%emt 0:00:15]} 13. Nxe5 {[%emt 0:00:38]} Bxe5 {[%emt 0:00:13]} ({Don't play} 13... Qxe5 14. Bf4 Qf6 15. Bxd6 Qxd6 16. Nc3 $16) 14. Qb3 {[%emt 0:14:46]} Qf7 {[%emt 0:22:54]} 15. Qa3 {[%emt 0:13:13]} Bf5 {[%emt 0:11:31]} 16. Bxf5 {[%emt 0:02:34]} Qxf5 {[%emt 0:00:08]} 17. f4 {[%emt 0:11:13]} Bf6 {[%emt 0:08:01]} 18. Qe3+ {[%emt 0:02:19]} Kf7 {[%emt 0:12:04]} 19. Ng3 {[%emt 0:03:04]} Qc2 $1 {[%emt 0:00:59]} 20. Kh1 {[%emt 0:02:56]} Rhe8 {[%emt 0:05:07]} (20... Bxb2 $2 21. Bxb2 Qxb2 22. Rab1 $18) 21. Qf3 {[%emt 0:03:08]} Rad8 {[%emt 0:01:25]} 22. f5 {[%emt 0:10:46]} Re7 {[%emt 0:04:26]} 23. Nh5 {[%emt 0:02:28]} Nd4 {[%emt 0:01:48]} 24. Qh3 {[%emt 0:03:03]} Qxf5 {[%emt 0:03:16]} 25. Qxf5 {[%emt 0:01:41]} Nxf5 {[%emt 0:00:01]} 26. Nxf6 {[%emt 0:03:11]} gxf6 {[%emt 0:00:04]} 27. g4 {[%emt 0:03:21]} Ne3 {[%emt 0:01:01]} 28. Bxe3 {[%emt 0:00:26]} Rxe3 {[%emt 0:00:01]} 29. g5 {[%emt 0:00:54]} Rd6 {[%emt 0:00:48]} 30. Rad1 {[%emt 0:01:22]} Re5 {[%emt 0:00:09]} 31. Rc1 {[%emt 0:03:08]} Rxg5 {[%emt 0:03:56]} 32. Rc7+ {[%emt 0:00:05]} Kg6 {[%emt 0:00:41]} 33. Rxb7 {[%emt 0:00:06] [#]} d4 $1 {[%emt 0:00:09]} 34. Rxa7 $19 {[%emt 0:06:31]} (34. h4 {is a better chance.} Rg4 35. Rxa7) 34... d3 {[%emt 0:00:31]} 35. Re7 {[%emt 0:00:03]} d2 {[%emt 0:00:19]} 36. Rd1 {[%emt 0:00:02]} Rc5 {[%emt 0:01:05]} 37. Re2 {[%emt 0:00:08]} Rc1 {[%emt 0:01:15]} 38. Rg2+ {[%emt 0:00:02]} Kf5 {[%emt 0:00:18]} 39. Rgg1 {[%emt 0:00:03]} Rxd1 {[%emt 0:00:36]} 40. Rxd1 {[%emt 0:00:01]} Ke4 {[%emt 0:00:01]} 0-1